Cogmind - Beta 10.2 @@@ ROGUE MODE // 2021.08.24 @ 21:24:12 Player: youngster Result: Destroyed by as-20600 with Assembled Blade Performance ------------- Evolutions (0) 0 Regions Visited (4) 800 Robots Destroyed (27) 135 Value Destroyed (612) 612 Prototype IDs (25) 500 Alien Tech Used (0) 0 Bonus (0) 0 TOTAL SCORE: 2047 Bonus ------- None Cogmind --------- Core Integrity 0/250 Matter 276/300 Energy 220/250 System Corruption 0% Temperature Cool (0) Movement Rolling (120) Ox4 Location -9/Mines Parts ------- > --- POWER (1) -------- Ion Engine > --- PROPULSION (2) --- Light Treads Wheel > --- UTILITY (2) ------ Large Storage Unit Large Storage Unit > --- WEAPON (2) ------- Particle Gun Light Assault Rifle > --- INVENTORY (16) --- Ion Engine Light Treads Light Treads High-capacity Matter Pod (200) Makeshift Sensor Array Improved Signal Interpreter Terrain Scanner 0b10 Alert Chip Propulsion Shielding Propulsion Shielding Propulsion Shielding Light Armor Plating Medium Armor Plating Hacking Suite Light Assault Rifle Peak State ------------ > --- POWER ------------ Ion Engine > --- PROPULSION ------- Light Treads Light Treads > --- UTILITY ---------- Large Storage Unit Large Storage Unit > --- WEAPON ----------- Light Assault Rifle Light Assault Rifle > --- INVENTORY -------- Ion Engine Light Treads Light Treads Wheel Small Storage Unit Makeshift Sensor Array Improved Signal Interpreter Terrain Scanner Propulsion Shielding Propulsion Shielding Propulsion Shielding Light Armor Plating Medium Armor Plating Hacking Suite Particle Gun [Rating: 9] Favorites ----------- Power Ion Engine Engine Ion Engine Propulsion Light Treads Treads Light Treads Wheel Wheel Utility Large Storage Unit Storage Large Storage Unit Weapon Light Assault Rifle Energy Gun EM Pulse Gun Ballistic Gun Light Assault Rifle Launcher Grenade Launcher Build | -11 -10 -10 -10 -9 ------- Run | Scr Mat Min Exi Min Slots Evolved . | . . . . . Power . | . . . . . Propulsion . | . . . . . Utility . | . . . . . Weapon . | . . . . . Parts Attached 21 | 6 10 3 . 2 Power 3 | 1 1 1 . . Engine 3 | 1 1 1 . . Core . | . . . . . Reactor . | . . . . . Propulsion 5 | 2 2 . . 1 Treads 4 | 2 2 . . . Leg . | . . . . . Wheel 1 | . . . . 1 Hover . | . . . . . Flight . | . . . . . Utility 3 | 1 2 . . . Device . | . . . . . Storage 3 | 1 2 . . . Processor . | . . . . . Hackware . | . . . . . Protection . | . . . . . Artifact . | . . . . . Weapon 10 | 2 5 2 . 1 Energy Gun 6 | 2 2 1 . 1 Energy Cannon . | . . . . . Ballistic Gun 3 | . 2 1 . . Ballistic Cannon . | . . . . . Launcher 1 | . 1 . . . Special Weapon . | . . . . . Impact Weapon . | . . . . . Slashing Weapon . | . . . . . Piercing Weapon . | . . . . . Special Melee Weapon . | . . . . . Unidentified Prototypes . | . . . . . Parts Lost 7 | . 4 2 . 1 Power 1 | . 1 . . . Propulsion 1 | . . . . 1 Utility . | . . . . . Weapon 5 | . 3 2 . . Highest Loss Streak 3 | . 3 2 . 1 Average Slot Usage (%) 99 | . 99 100 100 100 Engine 14 | . 14 14 14 14 Treads 27 | . 28 28 28 23 Storage 27 | . 27 28 28 28 Energy Gun 7 | . 17 . . . Ballistic Gun 20 | . 10 28 28 28 Naked Turns . | . . . . . Heaviest Build 41 | 13 41 39 39 39 Greatest Support 40 | 40 40 40 40 40 Greatest Overweight (x) 3 | . 1 . . 3 Average Overweight (x) . | . . . . . Largest Inventory Capacity 16 | 6 16 16 16 16 Average Capacity 15 | 4 15 16 16 16 Most Carried 16 | 3 16 14 16 16 Average Carried 12 | 1 10 13 15 15 Final Capacity 16 | 6 16 16 16 16 Final Carried 16 | 3 14 14 16 15 Class Distribution -------------------- 51% | Mutant 48% | Scavenger-Mutant Dominant Class ---------------- Mutant | -10/Materials Scavenger-Mutant | -10/Mines Scavenger-Mutant | -10/Exiles Scavenger-Mutant | -9/Mines Resources | -11 -10 -10 -10 -9 ----------- Run | Scr Mat Min Exi Min Matter Collected 432 | 183 209 40 . . Remotely . | . . . . . Salvage Created 925 | . 846 79 . . Parts 54 | . 50 4 . . Haulers Intercepted 1 | . 1 . . . Recyclers Shooed . | . . . . . Parts Field Recycled . | . . . . . Retrieved Matter . | . . . . . Parts Self-Destructed . | . . . . . Prevented . | . . . . . Kills | -11 -10 -10 -10 -9 ------- Run | Scr Mat Min Exi Min Combat Hostiles Destroyed 16 | . 14 2 . . Guns 15 | . 13 2 . . AOE 1 | . 1 . . . Classes Destroyed 7 | . 7 . . . Worker 1 | . 1 . . . Builder 3 | . 3 . . . Hauler 1 | . 1 . . . Recycler 1 | . 1 . . . Operator 5 | . 5 . . . Swarmer 3 | . 3 . . . Grunt 13 | . 11 2 . . Best Kill Streak 4 | . 4 2 . . Combat Bots Only 3 | . 3 2 . . Max Kills in Single Turn 2 | . 2 1 . . Gunslinging . | . . . . . Exploded 1 | . 1 . . . Melee . | . . . . . Uniques/NPCs Destroyed . | . . . . . Combat | -11 -10 -10 -10 -9 -------- Run | Scr Mat Min Exi Min Damage Taken 1302 | . 821 165 . 316 Core 284 | . 145 44 . 95 Absorbed by Shields . | . . . . . Core Remaining (%) 100 | 100 . . . . Volleys Fired 76 | . 63 10 . 3 Largest 2 | . 2 2 . 2 Hottest 90 | . 90 40 . 40 Shots Fired 150 | . 124 20 . 6 Gun 149 | . 123 20 . 6 Cannon . | . . . . . Launcher 1 | . 1 . . . Special . | . . . . . Kinetic 73 | . 47 20 . 6 Thermal 25 | . 25 . . . Explosive 1 | . 1 . . . Electromagnetic 51 | . 51 . . . Robot Hit Streak 12 | . 9 12 . 7 Robot Miss Streak 2 | . 2 1 . . Penetration Max . | . . . . . Secondary Targets 1 | . 1 . . . Max Gunslinging Chain 1 | . 1 . . . Shots Hit Robots 106 | . 83 17 . 6 Core Hits 49 | . 39 7 2 1 Critical Hits 1 | . . 1 . . Critical Kills . | . . . . . Critical Parts Destroyed 1 | . . 1 . . Melee Attacks . | . . . . . Impact . | . . . . . Slashing . | . . . . . Piercing . | . . . . . Sneak Attacks . | . . . . . Combat Hostiles . | . . . . . Follow-up Attacks . | . . . . . Damage Inflicted 1429 | . 1207 136 42 44 Guns 1114 | . 936 134 . 44 Cannons . | . . . . . Explosions 240 | . 240 . . . Melee . | . . . . . Ramming 75 | . 31 2 42 . Kinetic 450 | . 272 134 . 44 Thermal 358 | . 358 . . . Explosive 108 | . 108 . . . Electromagnetic 438 | . 438 . . . Impact . | . . . . . Slashing . | . . . . . Piercing . | . . . . . Highest Corruption . | . . . . . Average Corruption . | . . . . . Corruption Purged . | . . . . . Overload Shots . | . . . . . Overflow Damage 4 | . 4 . . . Projectiles . | . . . . . Explosions 4 | . 4 . . . Melee . | . . . . . Knockbacks . | . . . . . Impact . | . . . . . Kinetic . | . . . . . Secondary . | . . . . . Self-Inflicted Damage 58 | . 58 . . . Shots 2 | . 2 . . . Rammed 16 | . 4 1 11 . Targets Rammed 17 | . 5 1 11 . Kicked . | . . . . . Crushed 1 | . 1 . . . Highest Temperature 288 | . 288 25 . . Average Temperature 59 | . 64 10 . . Received Heat Transfer 509 | . 396 93 . 20 Effects 2 | . 2 . . . Interference 2 | . 2 . . . Siege Activations . | . . . . . Robots Corrupted . | . . . . . Combat Hostiles . | . . . . . Parts Fried 2 | . 2 . . . Impact Corruptions . | . . . . . Robots Melted . | . . . . . Combat Hostiles . | . . . . . Parts Melted 1 | . 1 . . . Heat Transferred 866 | . 866 . . . Parts Sabotaged . | . . . . . Parts Stolen . | . . . . . Parts Stripped . | . . . . . Power Chain Reactions 3 | . 3 . . . Missiles Intercepted . | . . . . . Alert | -11 -10 -10 -10 -9 ------- Run | Scr Mat Min Exi Min Peak Influence 295 | . 295 110 . . Initial 80 | . . 80 . . Average 133 | . 164 89 . . Maximum Alert Level 1 | . 1 . . . Low Security (%) 74 | 100 62 100 . 100 Level 1 25 | . 37 . . . Level 2 . | . . . . . Level 3 . | . . . . . Level 4 . | . . . . . Level 5 . | . . . . . High Security . | . . . . . Max Security . | . . . . . Squads Dispatched 7 | . 7 . . . Investigation 2 | . 2 . . . Extermination . | . . . . . Reinforcement 5 | . 5 . . . Assault . | . . . . . Garrison . | . . . . . Intercept . | . . . . . Construction Impeded . | . . . . . Haulers Reinforced . | . . . . . Stealth | -11 -10 -10 -10 -9 --------- Run | Scr Mat Min Exi Min Distress Signals 6 | . 5 . . 1 Communications Jammed . | . . . . . Distress Signals . | . . . . . Times Spotted 55 | . 32 2 . 21 Peak Tracking Total 20 | . 4 2 . 20 Tactical Retreats 2 | . 1 . . 1 Traps | -11 -10 -10 -10 -9 ------- Run | Scr Mat Min Exi Min Traps Triggered . | . . . . . Indirectly . | . . . . . Trap Hack Attempts . | . . . . . Triggered . | . . . . . Disarmed . | . . . . . Reprogrammed . | . . . . . Reused . | . . . . . Traps Extracted . | . . . . . Installed . | . . . . . Triggered . | . . . . . Machines | -11 -10 -10 -10 -9 ---------- Run | Scr Mat Min Exi Min Machines Disabled 1 | . 1 . . . Max in Single Turn 1 | . 1 . . . Machines Sabotaged . | . . . . . Garrisons Compromised . | . . . . . Overloaded Fab Kills . | . . . . . Fab Network Shutdowns . | . . . . . Hacking | -11 -10 -10 -10 -9 --------- Run | Scr Mat Min Exi Min Machines Accessed 7 | . 4 . 3 . Terminals 3 | . 3 . . . Fabricators . | . . . . . Repair Stations . | . . . . . Recycling Units 1 | . 1 . . . Scanalyzers . | . . . . . Garrison Access . | . . . . . Total Hacks 34 | . 9 . 25 . Successful 28 | . 3 . 25 . Failed 6 | . 6 . . . Catastrophic 1 | . 1 . . . Database Lockouts . | . . . . . Manual 9 | . 8 . 1 . Terminals 8 | . 8 . . . Fabricators . | . . . . . Repair Stations . | . . . . . Recycling Units 1 | . 1 . . . Scanalyzers . | . . . . . Garrison Access . | . . . . . Terminal Hacks 26 | . 1 . 25 . Record 24 | . . . 24 . Prototype ID Bank 1 | . 1 . . . EX-Prototype ID Bank 1 | . . . 1 . Fabricator Hacks . | . . . . . Repair Station Hacks . | . . . . . Recycling Unit Hacks . | . . . . . Scanalyzer . | . . . . . Garrison Access Hacks . | . . . . . Unauthorized Hacks 2 | . 2 . . . Terminals 1 | . 1 . . . Botnet 1 | . 1 . . . Fabricators . | . . . . . Repair Stations . | . . . . . Recycling Units 1 | . 1 . . . Tunnel 1 | . 1 . . . Scanalyzers . | . . . . . Garrison Access . | . . . . . Data Cores Recovered 1 | . 1 . . . Used . | . . . . . Hacking Detections 3 | . 3 . . . Full Trace Events . | . . . . . Feedback Events . | . . . . . Feedback Blocked . | . . . . . Robot Schematics Acquired . | . . . . . Robots Built . | . . . . . Matter . | . . . . . Time . | . . . . . Total Robot Build Rating . | . . . . . Part Schematics Acquired . | . . . . . Parts Built . | . . . . . Matter . | . . . . . Time . | . . . . . Total Part Build Rating . | . . . . . Parts Repaired . | . . . . . Time . | . . . . . Parts Recycled . | . . . . . Recycled Matter . | . . . . . Retrieved Matter . | . . . . . Retrieved Components . | . . . . . Parts Scanalyzed . | . . . . . Part Schematics Acquired . | . . . . . Parts Damaged . | . . . . . Bothacking | -11 -10 -10 -10 -9 ------------ Run | Scr Mat Min Exi Min Used RIF Installer . | . . . . . Robots Hacked . | . . . . . Non-combat . | . . . . . Combat . | . . . . . Robot Hacks Applied . | . . . . . Relay Couplers Released . | . . . . . Robots Rewired 5 | . 1 . 4 . Allies Hacked . | . . . . . Hacks Repelled . | . . . . . Allies | -11 -10 -10 -10 -9 -------- Run | Scr Mat Min Exi Min Total Allies 5 | . 1 . 4 . Largest Group 4 | . 1 . 4 4 Highest-Rated Group 58 | . 10 . 58 58 Highest-Rated Ally 21 | . 10 . 21 21 Total Orders 4 | . 4 . . . DROP 1 | . 1 . . . PICKUP 2 | . 2 . . . COLLECT 1 | . 1 . . . Ally Attacks 12 | . . . . 12 Total Damage 325 | . . . . 325 Kills 6 | . . . . 6 Allies Corrupted . | . . . . . Allies Melted . | . . . . . Intel | -11 -10 -10 -10 -9 ------- Run | Scr Mat Min Exi Min Robot Analysis Total . | . . . . . Derelict Logs Recovered 1 | . . 1 . . Drone Launches . | . . . . . Drone Recoveries . | . . . . . Exploration | -11 -10 -10 -10 -9 ------------- Run | Scr Mat Min Exi Min Turns Passed 2721 | 64 1182 447 969 59 Spaces Moved 1407 | 36 538 251 549 33 Core 4 | 4 . . . . Treads 1394 | 32 538 251 549 24 Legs . | . . . . . Wheels 9 | . . . . 9 Hover . | . . . . . Flight . | . . . . . Fastest Speed 50 | 50 160 160 160 110 Average Speed 163 | 147 170 160 160 146 Slowest Speed 180 | 160 180 160 160 160 Overloaded Moves . | . . . . . Propulsion Burnouts . | . . . . . Robots Hopped . | . . . . . Cave-ins Triggered . | . . . . . Exploration Rate (%) 45 | 5 74 46 92 12 Regions Visited 4 Branch Regions 3 Pre-discovered Areas 2 | . 1 . 1 . Known Exits Taken . | . . . . . Unknown Exits Taken 4 | 1 1 1 1 . Scrap Searched . | . . . . . Spaces Dug . | . . . . . Terrain Destroyed 15 | . 15 . . . Melee . | . . . . . Projectile . | . . . . . AOE 15 | . 15 . . . Terrain Rammed . | . . . . . Walls Destroyed . | . . . . . Machines Disabled . | . . . . . Actions | -11 -10 -10 -10 -9 --------- Run | Scr Mat Min Exi Min Total 1679 | 44 682 279 635 39 Wait 61 | . 45 14 1 1 Move 1403 | 35 537 250 548 33 Hop . | . . . . . Pick Up 20 | 3 12 1 4 . Fast Attach 8 | 6 2 . . . Attach 7 | . 4 2 . 1 Detach 1 | . 1 . . . Swap 6 | . 4 1 . 1 Drop 3 | . 1 . 2 . Fire 76 | . 63 10 . 3 Melee . | . . . . . Ram . | . . . . . Kick . | . . . . . Crush 17 | . 5 1 11 . Escape Stasis . | . . . . . Rewire 77 | . 8 . 69 . Trap . | . . . . . Miscellaneous . | . . . . . Route ------- -11/Scrapyard -10/Materials (discovered 3 exits: [*Mat x2] / [*Min]) -10/Mines -10/Exiles (discovered 2 exits: [*Min x2]) -9/Mines History --------- Turn | Location | Event 43 | -11/Scrapyard | Discovered new exit (range 14) 65 | -11/Scrapyard | Entered Materials 310 | -10/Materials | Build established: Mutant 580 | -10/Materials | Discovered new exit (range 15) 707 | -10/Materials | Discovered new exit (range 15) 798 | -10/Materials | Core integrity fell below 50% 842 | -10/Materials | Lost 3 parts (1p2w) 1038 | -10/Materials | Discovered new exit (range 16) 1247 | -10/Materials | Entered Mines 1305 | -10/Mines | Met a Derelict bent on vengeance 1307 | -10/Mines | Learned Materials stockpile data 1577 | -10/Mines | Deemed a non-threat by the Exiles lab entrance 1577 | -10/Mines | Discovered new exit (range 5) 1694 | -10/Mines | Entered Exiles 1694 | -10/Exiles | Found Exiles lab destroyed 1696 | -10/Exiles | Build established: Scavenger-Mutant 1730 | -10/Exiles | Discovered new exit (range 14) 2163 | -10/Exiles | Learned location of Zion (-7) 2273 | -10/Exiles | Opened EX-Vault 2285 | -10/Exiles | Found 0b10 Alert Chip 2646 | -10/Exiles | Discovered new exit (range 12) 2663 | -10/Exiles | Entered Mines 2663 | -9/Mines | Accompanied by 4 allies 2664 | -9/Mines | Assembled infested the area 2667 | -9/Mines | Core integrity fell below 20% 2669 | -9/Mines | Assisted by a Guerilla fighting off Assembled 2722 | -9/Mines | Destroyed by as-20600 with Assembled Blade Last Messages --------------- 02664_ ALERT: Infestation in the mines, dispatching Demolisher response squad. 02666_ Slug penetrates as-42512. 02666_ Mercenary 1b suffers critical hit. 02666_ Mercenary 1b destroyed. 02666_ Mercenary 1a destroyed. 02667_ 82-OV8(h): "I'll hold them off! Go on ahead or try to find another way!" 02667_ as-77714 destroyed. 02667_ Slug penetrates as-01065. 02668_ as-63169 knocked back. 02669_ A derelict emerges from the shadows: "You need to get out of here! I've been tracking a group of Assembled to figure out where they're coming from, and they're closing on this area, come on!" 02669_ Destroyed Asb. Hover Unit. 02669_ as-42512 destroyed. 02670_ Slug penetrates as-01065. 02670_ as-01065 destroyed. 02670_ as-96261 destroyed. 02705_ Lgt. Treads destroyed. Map ----- +----------------------------------------------------+ | | | | | | | | | | | | | | | | | | | | | | | | | | | | | | | | | | | | | ???????????????????????????????????????????????? | | ???????????????????????????????????????????????? | | ???????????????????????????????????????????????? | | ???????????????????????????????????????????????? | | ???????????????????????????????????????????????? | | ?????????###????????????????????? ????????? | | ????????? #?############## ????????? | | ?????????# #?# a@ ????????? | | ?????????# #?# ########## ????????? | | ??????#### ### #????????????? ## ????????? | | ??????# #??????????????????????????????? | | ??????# #??????????????????????????????? | | ??????# ########??????????????????????????????? | | ??????# #?????????????????????????????????????? | | ??????# #?????????????????????????????????????? | | ??????# #?????????????????????????????????????? | | ??????# #?????????????????????????????????????? | | ??????# #?????????????????????????????????????? | | ??????# #?????????????????????????????????????? | | ??????# #?????????????????????????????????????? | | ??????# ##????????????????????????????????????? | | ??????# ##???????????????????????????????????? | | ????### #???????????????????????????????????? | | ???## #???????????????????????????????????? | | ???# ######## ### ?????????????????? | | ???# # =%*% < ?????????????????? | | ???## %[!=%% ?????????????????? | | ????#### #%#### ?????????????????? | | ???????## #### #??????????????????????????????? | | ????????# ##????#??????????????????????????????? | | ????????###????????????????????????????????????? | | ???????????????????????????????????????????????? | +----------------------------------------------------+ Best States ------------- Heat Dissipation 25 Energy Generation 10 Energy Capacity 250 Matter Stores 300 Matter Capacity 300 Sight Range 16 Terrain Scan Density 10 Evasion (%) 40 Recoil Reduction 2 Item Schematics ----------------- None Robot Schematics ------------------ None Fabricated ------------ Nothing Alien Tech Used ----------------- None Achievements -------------- None Challenges ------------ None Game ------ Seed TransportCouplerScreen Manual? 0 Play Time 00:24:07 Cumulative 74.0 hours Start 2021.08.23 @ 12:38:58 End 2021.08.24 @ 21:24:12 Sessions 9 Manual Loads 0 Difficulty Rogue Special Mode None Game No. 49 Rogue 49 Adventurer 0 Explorer 0 Win Type - Total 0 Types 0/0/0/0/0/0/0/0/0 Lore% 51 Gallery% 67 Achievement% 40 Wizard Run 0 Options --------- ASCII 1 Keyboard 1 Movement Vi Keybinds 0 Fullscreen 2 Font 18/Cog Map View 76x50 Tactical HUD 1 Map Filters NONE Filters NONE Steam 0 RUN: 56b3aed7-9f2b-4e8d-8909-3484af6bcaa6